Cogmind - Beta 15 @@@ ROGUE MODE // 2025.09.29 @ 22:52:16 Player: woegarden Result: Destroyed by L-31 Rogue with Katana Performance ------------- Evolutions (1) 500 Regions Visited (2) 400 Robots Destroyed (8) 40 Value Destroyed (172) 172 Prototype IDs (2) 40 Alien Tech Used (0) 0 Bonus (0) 0 TOTAL SCORE: 1152 Bonus ------- None Cogmind --------- Core Integrity 0/400 Matter 282/300 Energy 125/125 System Corruption 0% Temperature Cool (15) Movement Core (250) Ox4 Location -9/Materials Parts ------- > --- POWER (1) -------- Light Ion Engine > --- PROPULSION (3) --- (None) > --- UTILITY (3) ------ Small Storage Unit Structural Scanner Signal Interpreter > --- WEAPON (2) ------- Particle Gun Light Assault Rifle > --- INVENTORY (8) ---- Ion Engine Light Nuclear Core Improved Heat Sink Huge Storage Unit Visual Processing Unit Peak State ------------ > --- POWER ------------ Light Ion Engine > --- PROPULSION ------- Light Treads Light Treads > --- UTILITY ---------- Small Storage Unit Structural Scanner Signal Interpreter > --- WEAPON ----------- Small Laser Assault Rifle > --- INVENTORY -------- Ion Engine Light Nuclear Core Improved Heat Sink Huge Storage Unit Visual Processing Unit Particle Gun [Rating: 9] Favorites ----------- Power Light Ion Engine Engine Light Ion Engine Propulsion Light Treads Treads Light Treads Leg Aluminum Leg Utility Small Storage Unit Device Structural Scanner Storage Small Storage Unit Processor Signal Interpreter Weapon Assault Rifle Energy Gun Small Laser Ballistic Gun Assault Rifle Build | -11 -10 -9 ------- Run | Yrd Mat Mat Slots Evolved 2 | . . 2 Power . | . . . Propulsion 1 | . . 1 Utility 1 | . . 1 Weapon . | . . . Parts Attached 10 | . 6 4 Power 2 | . 1 1 Engine 2 | . 1 1 Core . | . . . Reactor . | . . . Propulsion 2 | . 2 . Treads 2 | . 2 . Leg . | . . . Wheel . | . . . Hover . | . . . Flight . | . . . Utility 3 | . 2 1 Device 1 | . 1 . Storage 1 | . 1 . Processor 1 | . . 1 Hackware . | . . . Protection . | . . . Artifact . | . . . Weapon 3 | . 1 2 Energy Gun 2 | . 1 1 Energy Cannon . | . . . Ballistic Gun 1 | . . 1 Ballistic Cannon . | . . . Launcher . | . . . Special Weapon . | . . . Impact Weapon . | . . . Slashing Weapon . | . . . Piercing Weapon . | . . . Special Melee Weapon . | . . . Unidentified Prototypes . | . . . Parts Lost 6 | . 1 5 Power 2 | . 1 1 Propulsion 2 | . . 2 Utility . | . . . Weapon 2 | . . 2 Highest Loss Streak 5 | . 1 5 To Critical Strikes . | . . . Average Backups 6 | 6 7 5 Power 2 | 1 2 2 Propulsion . | 4 1 . Utility 2 | . 2 3 Weapon 1 | 1 1 . Tool/Special . | . . . Unused Backups 15 | . 10 5 Power 3 | . 1 2 Propulsion 6 | . 6 . Utility 3 | . 1 2 Weapon 3 | . 2 1 Tool/Special . | . . . Average Slot Usage (%) 86 | . 93 73 Engine 12 | . 13 9 Treads 21 | . 25 12 Leg 1 | . 2 . Device 7 | . 5 11 Storage 14 | . 16 11 Processor 3 | . . 9 Energy Gun 7 | . 6 11 Ballistic Gun 17 | . 21 8 Peak Build Rating 9 | 6 8 9 Average Rating 7 | 6 7 7 On Entrance 6 | 6 6 8 Naked Turns . | . . . Heaviest Build 92 | 12 92 13 Greatest Support 40 | 20 40 40 Greatest Overweight (x) 4 | . 2 4 Average Overweight (x) . | . . . Largest Inventory Capacity 25 | 8 25 8 Average Capacity 10 | 8 11 8 Most Carried 10 | 6 10 7 Average Carried 7 | 6 7 5 Final Capacity 8 | 8 8 8 Final Carried 7 | 6 7 5 Class Distribution -------------------- 100% | Mutant Dominant Class ---------------- Mutant | -10/Materials Mutant | -9/Materials Resources | -11 -10 -9 ----------- Run | Yrd Mat Mat Matter Collected 343 | 200 127 16 Remotely . | . . . Salvage Created 214 | . 163 51 Parts 18 | . 13 5 Haulers Intercepted . | . . . Recyclers Shooed . | . . . Parts Field Recycled . | . . . Retrieved Matter . | . . . Parts Self-Destructed . | . . . Prevented . | . . . Kills | -11 -10 -9 ------- Run | Yrd Mat Mat Combat Hostiles Destroyed 6 | . 3 3 Guns 6 | . 3 3 Classes Destroyed 4 | . 3 1 Worker 1 | . 1 . Watcher 1 | . 1 . Swarmer 3 | . . 3 Grunt 3 | . 3 . Best Kill Streak 3 | . 2 3 Combat Bots Only 3 | . 2 3 Max Kills in Single Turn 1 | . 1 1 Gunslinging . | . . . Exploded . | . . . Melee . | . . . Uniques/NPCs Destroyed . | . . . Combat | -11 -10 -9 -------- Run | Yrd Mat Mat Hostile Shots Fired 155 | . 38 117 Missed 34 | . 7 27 Hits 121 | . 31 90 Melee 3 | . . 3 Projectile 118 | . 31 87 Critical Strikes 1 | . . 1 Damage Taken 1299 | . 379 920 Core 452 | . 33 419 Absorbed by Shields . | . . . Core Remaining (%) 93 | 100 86 . Volleys Fired 22 | . 13 9 Largest 2 | . 2 2 Hottest 85 | . 40 85 Shots Fired 39 | . 26 13 Gun 39 | . 26 13 Cannon . | . . . Launcher . | . . . Special . | . . . Kinetic 30 | . 26 4 Thermal 9 | . . 9 Explosive . | . . . Electromagnetic . | . . . Robot Hit Streak 21 | . 16 21 Robot Miss Streak 4 | . 1 4 Penetration Max . | . . . Secondary Targets . | . . . Shots Hit Robots 29 | . 22 7 Core Hits 11 | . 8 3 Critical Kills . | . . . Critical Parts Destroyed . | . . . Critical Strikes 1 | . . 1 Burn 1 | . . 1 Melee Attacks . | . . . Impact . | . . . Slashing . | . . . Piercing . | . . . Sneak Attacks . | . . . Combat Hostiles . | . . . Follow-up Attacks . | . . . Damage Inflicted 407 | . 304 103 Guns 391 | . 288 103 Cannons . | . . . Explosions . | . . . Melee . | . . . Ramming 16 | . 16 . Kinetic 298 | . 288 10 Thermal 93 | . . 93 Explosive . | . . . Electromagnetic . | . . . Impact . | . . . Slashing . | . . . Piercing . | . . . Highest Corruption . | . . . Average Corruption . | . . . Corruption Purged . | . . . Corruption Blocked . | . . . Overload Shots . | . . . Overflow Damage . | . . . Projectiles . | . . . Explosions . | . . . Melee . | . . . Knockbacks . | . . . Impact . | . . . Kinetic . | . . . Secondary . | . . . Self-Inflicted Damage . | . . . Shots . | . . . Rammed 2 | . 2 . Targets Rammed 2 | . 2 . Kicked . | . . . Crushed . | . . . Highest Temperature 46 | . 2 46 Average Temperature 19 | . 2 22 Received Heat Transfer 369 | . 216 153 Siege Activations . | . . . Martial Activations . | . . . Shielding Activations . | . . . Robots Disrupted . | . . . Combat Hostiles . | . . . Robots Corrupted . | . . . Combat Hostiles . | . . . Parts Fried . | . . . Impact Corruptions . | . . . Robots Melted . | . . . Combat Hostiles . | . . . Parts Melted 1 | . . 1 Heat Transferred 296 | . . 296 Parts Sabotaged . | . . . Parts Stolen . | . . . Parts Stripped . | . . . Power Chain Reactions . | . . . Alert | -11 -10 -9 ------- Run | Yrd Mat Mat Maximum Alert Level . | . . . Low Security (%) 100 | 100 100 100 Level 1 . | . . . Level 2 . | . . . Level 3 . | . . . Level 4 . | . . . Level 5 . | . . . High Security . | . . . Max Security . | . . . Peak Influence 110 | . 53 110 Initial . | . . . Average 18 | . 16 22 Influence Increases 240 | . 93 147 Destroy 0b10 Robot/C 120 | . 60 60 Destroy 0b10 Robot/NC 10 | . 10 . Destroy Leader 22 | . 22 . Successful Hack 12 | . . 12 Disable Machine 15 | . . 15 Destroy Structure 1 | . 1 . Lose Combat Pursuer 60 | . . 60 Influence Decreases 140 | . 93 47 Time Decay 135 | . 93 42 Lost Part 5 | . . 5 Squads Dispatched 2 | . 1 1 Investigation 1 | . 1 . Extermination . | . . . Reinforcement 1 | . . 1 Assault . | . . . Garrison . | . . . Intercept . | . . . Searches Triggered . | . . . Construction Impeded . | . . . Haulers Reinforced . | . . . Active Scanning Responses . | . . . Cargo Convoy Interrupts . | . . . Stealth | -11 -10 -9 --------- Run | Yrd Mat Mat Distress Signals 2 | . 1 1 Communications Jammed . | . . . Distress Signals . | . . . Times Spotted 21 | . 8 13 Peak Tracking Total 10 | . 3 10 Tactical Retreats 2 | . . 2 Traps | -11 -10 -9 ------- Run | Yrd Mat Mat Traps Triggered 1 | . 1 . Indirectly . | . . . Trap Hack Attempts . | . . . Triggered . | . . . Disarmed . | . . . Reprogrammed . | . . . Reused . | . . . Traps Extracted . | . . . Installed . | . . . Triggered . | . . . Machines | -11 -10 -9 ---------- Run | Yrd Mat Mat Machines Disabled 1 | . . 1 Max in Single Turn 1 | . . 1 Machines Repaired . | . . . Machines Dismantled . | . . . Machines Sabotaged . | . . . Overloaded Fab Kills . | . . . Hacking | -11 -10 -9 --------- Run | Yrd Mat Mat Machines Accessed 2 | . . 2 Terminals 1 | . . 1 Fabricators . | . . . Repair Stations . | . . . Recycling Units 1 | . . 1 Scanalyzers . | . . . Garrison Access . | . . . Total Hacks 6 | . . 6 Successful 4 | . . 4 Failed 2 | . . 2 Catastrophic . | . . . Database Lockouts . | . . . Manual . | . . . Terminals 4 | . . 4 Fabricators . | . . . Repair Stations . | . . . Recycling Units 2 | . . 2 Scanalyzers . | . . . Garrison Access . | . . . Terminal Hacks 3 | . . 3 Record 1 | . . 1 Prototype ID Bank 1 | . . 1 Branch Access Points 1 | . . 1 Fabricator Hacks . | . . . Repair Station Hacks . | . . . Recycling Unit Hacks 1 | . . 1 Report Inventory 1 | . . 1 Scanalyzer . | . . . Garrison Access Hacks . | . . . Unauthorized Hacks . | . . . Terminals . | . . . Fabricators . | . . . Repair Stations . | . . . Recycling Units . | . . . Scanalyzers . | . . . Garrison Access . | . . . Data Cores Recovered . | . . . Used . | . . . Hacking Detections 2 | . . 2 Full Trace Events . | . . . Feedback Events . | . . . Feedback Blocked . | . . . Robot Schematics Acquired . | . . . Robots Built . | . . . Authchips . | . . . Time . | . . . Total Robot Build Rating . | . . . Part Schematics Acquired . | . . . Parts Built . | . . . Authchips . | . . . Time . | . . . Total Part Build Rating . | . . . Parts Repaired . | . . . Time . | . . . Parts Recycled . | . . . Recycled Matter . | . . . Retrieved Matter . | . . . Retrieved Components . | . . . Parts Scanalyzed . | . . . Part Schematics Acquired . | . . . Parts Damaged . | . . . Bothacking | -11 -10 -9 ------------ Run | Yrd Mat Mat Used RIF Installer . | . . . Robots Hacked . | . . . Non-combat . | . . . Combat . | . . . Robot Hacks Applied . | . . . Relay Couplers Released . | . . . Fabnet Peak Effective % . | . . . Robots Rewired . | . . . Allies Hacked . | . . . Hacks Repelled . | . . . Allies | -11 -10 -9 -------- Run | Yrd Mat Mat Total Allies . | . . . Largest Group . | . . . Highest-Rated Group . | . . . Highest-Rated Ally . | . . . Total Orders . | . . . Ally Attacks . | . . . Total Damage . | . . . Kills . | . . . Allies Corrupted . | . . . Allies Melted . | . . . Intel | -11 -10 -9 ------- Run | Yrd Mat Mat Active Infowar (turns) 308 | . 139 169 Structural 308 | . 139 169 Robot Analysis Total . | . . . Derelict Logs Recovered . | . . . Drone Launches . | . . . Drone Recoveries . | . . . Exploration | -11 -10 -9 ------------- Run | Yrd Mat Mat Turns Passed 499 | 2 328 169 Spaces Moved 239 | 2 153 84 Core 21 | . . 21 Treads 197 | . 134 63 Legs 21 | 2 19 . Wheels . | . . . Hover . | . . . Flight . | . . . Fastest Speed 100 | 120 120 100 Average Speed 166 | 120 165 169 Slowest Speed 320 | 120 320 250 Overloaded Moves . | . . . Propulsion Burnouts . | . . . Robots Hopped . | . . . Potential Cave-ins . | . . . Cave-ins Triggered . | . . . Exploration Rate (%) 13 | 2 27 11 Regions Visited 2 Branch Regions . Pre-discovered Areas . | . . . Known Exits Taken . | . . . Unknown Exits Taken 2 | 1 1 . Scrap Searched . | . . . Spaces Dug . | . . . Terrain Destroyed . | . . . Melee . | . . . Projectile . | . . . AOE . | . . . Terrain Rammed . | . . . Walls Destroyed . | . . . Machines Disabled . | . . . Actions | -11 -10 -9 --------- Run | Yrd Mat Mat Total 298 | 1 200 97 Wait 13 | . 13 . Move 237 | 1 152 84 Hop . | . . . Pick Up 8 | . 8 . Fast Attach 3 | . 1 2 Attach 4 | . 2 2 Detach . | . . . Swap 3 | . 3 . Drop 6 | . 6 . Fire 22 | . 13 9 Melee . | . . . Ram . | . . . Kick . | . . . Crush 2 | . 2 . Escape Stasis . | . . . Rewire . | . . . Trap . | . . . Miscellaneous . | . . . Route ------- -11/Scrapyard -10/Materials (discovered 2 exits: *Mat / [*Min]) -9/Materials (discovered 2 exits: Min x2) History --------- Turn | Location | Event 1 | -11/Scrapyard | Discovered new exit (range 1) 3 | -11/Scrapyard | Entered Materials 266 | -10/Materials | Discovered new exit (range 13) 266 | -10/Materials | Discovered new exit (range 7) 301 | -10/Materials | Build established: Mutant 331 | -10/Materials | Entered another Materials area 331 | -9/Materials | Evolved 2 slots: Propulsion x1, Utility x1 355 | -9/Materials | Identified exit to Mines 453 | -9/Materials | Core integrity fell below 50% 485 | -9/Materials | Core integrity fell below 20% 489 | -9/Materials | Lost 5 parts (1p2n2w) 500 | -9/Materials | Destroyed by L-31 Rogue with Katana Last Messages --------------- 00412_ S-10 Pest unfolds itself. 00425_ Lgt. Treads destroyed. 00432_ Assault Rifle destroyed. 00433_ Lgt. Treads destroyed. 00446_ Critical hit (Burn: +37). 00455_ Sml. Laser destroyed. 00458_ Lgt. Ion Engine destroyed. 00460_ S-10 Pest destroyed. 00466_ Destroyed Flight Unit. 00466_ S-10 Pest suffers critical hit (Burn). 00468_ S-10 Pest destroyed. 00472_ Acquired Lgt. Assault Rifle. 00473_ Electrolysis Chamber disabled. 00474_ S-10 Pest destroyed. 00479_ Flight Unit melted. 00479_ S-10 Pest destroyed. 00482_ Acquired 16 matter. 00486_ Acquired Lgt. Ion Engine. 00489_ ALERT: Hostiles spotted, dispatching reinforcements to Terminal M006. Map ----- +----------------------------------------------------+ | ????????????????????## + ### #### ##? | | ????????????????????## # """"" ### #####??####? | | ????????????????????## # """"" ### ##????? ? | | ????????????????????## # """"" ### ##?????????? | | ????????????????????## # ### ##?????????? | | ????????????????????## ############ ## ????????? | | ????????????????????## ############+## ????????? | | ????????????????????## ##?????## # ????????? | | ????????????????????## ##?????##""" # ????????? | | ???????T" ??????### ###????##"Y # ????????? | | ???????####+########## #########""" ##????????? | | ???????## ####### ######## ##????????? | | ??????? # ##????????? | | ????????? T T / ##????????? | | ??????? # ##????????? | | ??????????? ####### ###### # """ ##????????? | | ??????????? ?########## ######## # """ ##????????? | | ??????????????????? ### ####??## # """ + ????????? | | ?????????????????????## ##????## # ##????????? | | ????????## ???????? ###[######## ########????????? | | ????????## ???????? ###+######## ########????????? | | ????????## ########=*%=% ### ??????????????? | | ????????## ######## %"" ### ???????????????? | | ????????## # "" ### ??????????????? | | ????????## # "Y ##### ??????????????? | | ????????## # gl@ ##### ??????????????? | | ????????##+????## g """ ##??????????????????? | | ??????????????? # # """ ##??????????????????? | | ??????????????? # # """ ##??????????????????? | | ??????????????? # # ##??????????????????? | | ??????????????? ###############??????????????????? | | ??????????????? ###############??????????????????? | | ?????????????????????????????????????????????????? | | ?????????????????????????????????????????????????? | | ?????????????????????????????????????????????????? | | ?????????????????????????????????????????????????? | | ?????????????????????????????????????????????????? | | ?????????????????????????????????????????????????? | | | | | | | | | | | | | | | | | | | | | | | | | +----------------------------------------------------+ Best States ------------- Heat Dissipation 28 Energy Generation 10 Energy Capacity 125 Matter Stores 300 Matter Capacity 300 Sight Range 16 Terrain Scan Density 10 Evasion (%) 55 Recoil Reduction 2 Item Schematics ----------------- None Robot Schematics ------------------ None Fabricated ------------ Nothing Repaired ---------- Nothing Alien Tech Used ----------------- None Achievements -------------- None Challenges ------------ None Game ------ Seed MultireflexMappingWartreads Manual? 0 Play Time 00:07:22 Cumulative 108.0 hours Start 2025.09.29 @ 22:46:26 End 2025.09.29 @ 22:52:16 Sessions 1 Manual Loads 0 Difficulty Rogue Special Mode None Game No. 185 Rogue 139 Adventurer 45 Explorer 1 Win Type - Total 0 Types 0/0/0/0/0/0/0/0/0/0 Lore% 21 Gallery% 42 Achievement% 36 Wizard Run 0 Options --------- Layout 1 ASCII 0 Keyboard 0 Movement Mouse Keybinds 0 Fullscreen 1 Font 32/SmallcapsGlow Map View 50x35 Zoom Use 0% Tactical HUD 1 Map Filters NONE Filters LOW_CONTRAST(13,24,33)|BRIGHTNESS(90)|SATURATION(87) Steam 1 RUN: 81ea8389-58d2-4246-95cf-5ce1217bf064